fUSD/lending_fUSD_20260606
["ID","MTS","AMOUNT","RATE_DAILY","PERIOD"]
[424235893,1780678259000,-318.383922,0.00032329,7]
[424235899,1780678259000,-318.383922,0.00032329,7]
[424235887,1780678259000,-301.14337869,0.00032258,2]
[424235892,1780678259000,-318.383922,0.00032329,7]
[424235859,1780678259000,-2085.92447036,0.00032052,2]
[424235858,1780678259000,-987.4382627,0.00032052,2]
[424235861,1780678259000,-2077.54517781,0.00032052,2]
[424235863,1780678259000,-1229.02181185,0.00032052,2]
[424235862,1780678259000,-2403.68758872,0.00032052,2]
[424235860,1780678259000,-924.07117849,0.00032052,2]
[424235865,1780678259000,-925.56941366,0.00032052,2]
[424235864,1780678259000,-1901.53174664,0.00032052,2]
[424235867,1780678259000,-1004.72303929,0.00032053,2]
[424235869,1780678259000,-955.92079839,0.00032064,2]
[424235870,1780678259000,-922.3885011,0.00032064,2]
[424235868,1780678259000,-1036.94322149,0.00032064,2]
[424235866,1780678259000,-1049.68127333,0.00032053,2]
[424235881,1780678259000,-1024.0,0.0003224,2]
[424235857,1780678259000,-1002.17269826,0.00032052,2]
[424235886,1780678259000,-804.17102365,0.00032255,2]
[424235884,1780678259000,-260.4103811,0.00032252,2]
[424235877,1780678259000,-327.55,0.00032192,2]
[424235875,1780678259000,-1024.91188285,0.00032132,2]
[424235871,1780678259000,-1027.34020752,0.00032064,2]
[424235876,1780678259000,-1024.91188285,0.00032171,2]
[424235878,1780678259000,-1024.91188285,0.0003221,2]
[424235879,1780678259000,-4510.5,0.0003221,5]
[424235873,1780678259000,-179.97120458,0.000321,2]
[424235880,1780678259000,-20505.0,0.0003224,2]
[424235883,1780678259000,-1024.91188285,0.00032247,2]
[424235882,1780678259000,-257.0,0.0003224,2]
[424235872,1780678259000,-1024.91188285,0.00032092,2]
[424235874,1780678259000,-623.0,0.00032121,13]
[424235968,1780678260000,-500.0,0.00032876,2]
[424235960,1780678260000,-1000.0,0.00032876,30]
[424235950,1780678260000,-1024.91188285,0.00032804,2]
[424235951,1780678260000,-152.0,0.00032828,3]
[424235949,1780678260000,-4923.77379024,0.000328,2]
[424235956,1780678260000,-1000.0,0.00032876,30]
[424235948,1780678260000,-179.97120458,0.00032795,2]
[424235945,1780678260000,-151.0,0.00032739,4]
[424235954,1780678260000,-188.96503684,0.00032859,7]
[424235955,1780678260000,-1000.0,0.00032876,30]
[424235958,1780678260000,-1000.0,0.00032876,30]
[424235961,1780678260000,-768.30560097,0.00032876,30]
[424235947,1780678260000,-1024.91188285,0.00032777,2]
[424235962,1780678260000,-500.0,0.00032876,2]
[424235970,1780678260000,-464.52071024,0.00032876,2]
[424235963,1780678260000,-500.0,0.00032876,2]
[424235966,1780678260000,-500.0,0.00032876,2]
[424235964,1780678260000,-425.76176606,0.00032876,2]
[424235971,1780678260000,-590.14663809,0.00032876,2]
[424235965,1780678260000,-500.0,0.00032876,2]
[424235969,1780678260000,-469.35697937,0.00032876,2]
[424235967,1780678260000,-624.67718942,0.00032876,2]
[424235973,1780678260000,-435.78371593,0.00032876,2]
[424235978,1780678260000,-200.0,0.00032876,2]
[424235979,1780678260000,-1000.0,0.00032877,10]
[424235982,1780678260000,-1051.7,0.00032877,2]
[424235972,1780678260000,-405.78351502,0.00032876,2]
[424235981,1780678260000,-351.03,0.00032877,2]
[424235959,1780678260000,-1000.0,0.00032876,30]
[424235953,1780678260000,-1024.91188285,0.00032856,2]
[424235977,1780678260000,-329.63985781,0.00032876,2]
[424235952,1780678260000,-1024.91188285,0.0003283,2]
[424235918,1780678260000,-4124.0,0.00032457,30]
[424235920,1780678260000,-1324.0,0.00032462,30]
[424235928,1780678260000,-1000.0,0.000325,2]
[424235929,1780678260000,-1007.12032433,0.000325,7]
[424235919,1780678260000,-934.0,0.00032462,30]
[424235931,1780678260000,-1024.91188285,0.00032516,2]
[424235923,1780678260000,-3253.0,0.00032462,30]
[424235921,1780678260000,-680.0,0.00032462,30]
[424235926,1780678260000,-470.0,0.00032493,30]
[424235924,1780678260000,-245.47483305,0.00032485,7]
[424235930,1780678260000,-2085.19,0.000325,7]
[424235925,1780678260000,-1024.91188285,0.00032485,2]
[424235922,1780678260000,-3251.0,0.00032462,30]
[424235957,1780678260000,-1000.0,0.00032876,30]
[424235932,1780678260000,-231.870562,0.00032533,7]
[424235934,1780678260000,-1024.91188285,0.00032578,2]
[424235935,1780678260000,-1390.8,0.000326,7]
[424235942,1780678260000,-1024.91188285,0.00032694,2]
[424235933,1780678260000,-1024.91188285,0.00032547,2]
[424235943,1780678260000,-1024.91188285,0.00032722,2]
[424235944,1780678260000,-623.0,0.00032727,14]
[424235936,1780678260000,-1024.91188285,0.00032607,2]
[424235937,1780678260000,-150.00105976,0.00032617,7]
[424235939,1780678260000,-169.62,0.00032629,3]
[424235940,1780678260000,-1024.91188285,0.00032637,2]
[424235938,1780678260000,-169.62,0.00032629,3]
[424235941,1780678260000,-1024.91188285,0.00032666,2]
[424235946,1780678260000,-1024.91188285,0.0003275,2]
[424235927,1780678260000,-704.16,0.000325,14]
[424235980,1780678260000,-630.0,0.00032877,10]
[424235993,1780678260000,-1000.0,0.00032877,30]
[424235975,1780678260000,-500.0,0.00032876,2]
[424236015,1780678260000,-500.0,0.00032955,2]
[424236014,1780678260000,-500.0,0.00032955,2]
[424236018,1780678260000,-1024.91188285,0.00032958,2]
[424236019,1780678260000,-1024.91188285,0.00032982,2]
[424236020,1780678260000,-1001.61824326,0.00032994,2]
[424236017,1780678260000,-400.0,0.00032955,2]
[424236022,1780678260000,-466.06143726,0.00033,120]
[424236024,1780678260000,-223.36346006,0.00033,120]
[424236023,1780678260000,-1682.15388962,0.00033,120]
[424236027,1780678260000,-317.1473066,0.00033,120]
[424236033,1780678260000,-890.90734959,0.00033,120]
[424236029,1780678260000,-565.72421072,0.00033,120]
[424236032,1780678260000,-602.88147334,0.00033,120]
[424236013,1780678260000,-1024.91188285,0.00032933,2]
[424236025,1780678260000,-1457.05381825,0.00033,120]
[424236031,1780678260000,-306.50544473,0.00033,120]
[424236026,1780678260000,-517.41685059,0.00033,120]
[424236028,1780678260000,-311.41773744,0.00033,120]
[424236030,1780678260000,-1918.20776524,0.00033,120]
[424236034,1780678260000,-174.3460345,0.00033,120]
[424236036,1780678260000,-433.47194799,0.00033,120]
[424236040,1780678260000,-172.0,0.00033,14]
[424236037,1780678260000,-1910.38886028,0.00033,120]
[424236041,1780678260000,-1939.11156993,0.00033,120]
[424236042,1780678260000,-323.74083089,0.00033,120]
[424236039,1780678260000,-441.83431517,0.00033,120]
[424236038,1780678260000,-859.49474078,0.00033,120]
[424235974,1780678260000,-230.32974089,0.00032876,2]
[424236021,1780678260000,-753.93753881,0.00033,120]
[424236009,1780678260000,-262.17,0.000329,120]
[424236035,1780678260000,-1411.14452718,0.00033,120]
[424236012,1780678260000,-1024.91188285,0.00032908,2]
[424235976,1780678260000,-500.0,0.00032876,2]
[424235983,1780678260000,-151.0,0.00032877,7]
[424235987,1780678260000,-151.0,0.00032877,7]
[424235985,1780678260000,-151.0,0.00032877,7]
[424235988,1780678260000,-151.0,0.00032877,7]
[424235991,1780678260000,-219.903157,0.00032877,7]
[424235986,1780678260000,-151.0,0.00032877,7]
[424235989,1780678260000,-151.0,0.00032877,7]
[424236016,1780678260000,-400.0,0.00032955,2]
[424235992,1780678260000,-1000.0,0.00032877,30]
[424235990,1780678260000,-151.0,0.00032877,7]
[424236043,1780678260000,-240.54220588,0.00033,120]
[424235995,1780678260000,-924.72,0.00032877,30]
[424235994,1780678260000,-1000.0,0.00032877,120]
[424235984,1780678260000,-151.0,0.00032877,7]
[424236006,1780678260000,-1024.91188285,0.00032882,2]
[424236011,1780678260000,-979.62,0.000329,120]
[424235997,1780678260000,-1000.0,0.00032877,120]
[424236010,1780678260000,-367.05,0.000329,120]
[424236008,1780678260000,-1095.24,0.00032889,30]
[424236000,1780678260000,-500.0,0.00032877,2]
[424235998,1780678260000,-500.0,0.00032877,2]
[424236001,1780678260000,-500.0,0.00032877,2]
[424236004,1780678260000,-426.16084305,0.00032877,2]
[424235999,1780678260000,-500.0,0.00032877,2]
[424236003,1780678260000,-500.0,0.00032877,2]
[424236007,1780678260000,-1110.55,0.00032889,30]
[424235996,1780678260000,-167.63452669,0.00032877,2]
[424236005,1780678260000,-530.12183621,0.00032877,30]
[424236002,1780678260000,-500.0,0.00032877,2]
[424236086,1780678261000,-2000.0,0.00033333,7]
[424236089,1780678261000,-1118.78617682,0.00033349,2]
[424236091,1780678261000,-1208.19447306,0.00033349,2]
[424236087,1780678261000,-623.0,0.00033333,14]
[424236085,1780678261000,-1024.91188285,0.00033324,2]
[424236074,1780678261000,-525.35557267,0.00033227,2]
[424236077,1780678261000,-169.36,0.00033242,7]
[424236081,1780678261000,-2635.35,0.00033282,30]
[424236076,1780678261000,-1024.91188285,0.00033237,2]
[424236082,1780678261000,-150.0,0.00033302,2]
[424236080,1780678261000,-1024.91188285,0.00033281,2]
[424236083,1780678261000,-1024.91188285,0.00033303,2]
[424236094,1780678261000,-2423.80270745,0.00033362,2]
[424236106,1780678261000,-1000.0,0.000334,120]
[424236084,1780678261000,-300.0,0.00033315,29]
[424236090,1780678261000,-1237.46838456,0.00033349,2]
[424236092,1780678261000,-1169.2014813,0.00033362,2]
[424236088,1780678261000,-1024.91188285,0.00033345,2]
[424236095,1780678261000,-2804.30218684,0.00033362,2]
[424236096,1780678261000,-2218.45370441,0.00033362,2]
[424236097,1780678261000,-1433.85878049,0.00033362,2]
[424236100,1780678261000,-1024.91188285,0.00033366,2]
[424236104,1780678261000,-1024.91188285,0.00033387,2]
[424236103,1780678261000,-1198.56357544,0.00033374,2]
[424236108,1780678261000,-741.0,0.00033408,30]
[424236098,1780678261000,-1251.5528584,0.00033362,2]
[424236073,1780678261000,-150.0,0.00033226,2]
[424236093,1780678261000,-2433.57854876,0.00033362,2]
[424236075,1780678261000,-416.15,0.00033228,7]
[424236052,1780678261000,-193.225472,0.00033,8]
[424236079,1780678261000,-1024.91188285,0.00033259,2]
[424236109,1780678261000,-3960.0,0.00033408,30]
[424236044,1780678261000,-278.51312383,0.00033,120]
[424236045,1780678261000,-356.36293984,0.00033,120]
[424236046,1780678261000,-52318.84116698,0.00033,2]
[424236048,1780678261000,-755.95134166,0.00033,7]
[424236056,1780678261000,-1024.91188285,0.00033007,2]
[424236057,1780678261000,-1024.91188285,0.00033031,2]
[424236058,1780678261000,-1024.91188285,0.00033055,2]
[424236050,1780678261000,-173.0,0.00033,14]
[424236047,1780678261000,-280.999999,0.00033,30]
[424236049,1780678261000,-173.0,0.00033,14]
[424236051,1780678261000,-173.0,0.00033,14]
[424236055,1780678261000,-3211.0,0.00033,7]
[424236071,1780678261000,-9329.48,0.00033206,7]
[424236054,1780678261000,-1493.279216,0.00033,8]
[424236060,1780678261000,-1024.91188285,0.00033078,2]
[424236066,1780678261000,-179.97120458,0.00033143,2]
[424236059,1780678261000,-160.68,0.00033077,7]
[424236067,1780678261000,-1024.91188285,0.00033148,2]
[424236068,1780678261000,-1024.91188285,0.00033171,2]
[424236062,1780678261000,-1024.91188285,0.00033102,2]
[424236069,1780678261000,-1024.91188285,0.00033193,2]
[424236064,1780678261000,-482.29571649,0.00033123,120]
[424236070,1780678261000,-6337.6,0.00033206,2]
[424236063,1780678261000,-441.26982171,0.00033123,120]
[424236065,1780678261000,-1024.91188285,0.00033125,2]
[424236072,1780678261000,-1024.91188285,0.00033215,2]
[424236078,1780678261000,-500.0,0.00033251,14]
[424236053,1780678261000,-206.107166,0.00033,8]
[424236107,1780678261000,-1024.91188285,0.00033407,2]
[424236061,1780678261000,-2085.19,0.000331,30]
[424236102,1780678261000,-1076.11991795,0.00033374,2]
[424236140,1780678261000,-1024.91188285,0.00033681,2]
[424236141,1780678261000,-4854.23,0.00033686,7]
[424236146,1780678261000,-151.0,0.00033739,4]
[424236143,1780678261000,-1024.91188285,0.000337,2]
[424236145,1780678261000,-1024.91188285,0.00033736,2]
[424236144,1780678261000,-1024.91188285,0.00033718,2]
[424236142,1780678261000,-189.39778857,0.00033692,2]
[424236147,1780678261000,-163.07,0.00033739,7]
[424236149,1780678261000,-11578.43,0.00033756,60]
[424236158,1780678261000,-500.0,0.00033849,120]
[424236165,1780678261000,-753.93753881,0.000339,120]
[424236148,1780678261000,-1024.91188285,0.00033755,2]
[424236160,1780678261000,-231.879597,0.00033867,10]
[424236138,1780678261000,-1024.91188285,0.00033644,2]
[424236159,1780678261000,-1024.91188285,0.00033862,2]
[424236156,1780678261000,-179.97120458,0.00033838,2]
[424236150,1780678261000,-1024.91188285,0.00033773,2]
[424236152,1780678261000,-304.6208102,0.000338,120]
[424236157,1780678261000,-1024.91188285,0.00033844,2]
[424236151,1780678261000,-1024.91188285,0.00033791,2]
[424236154,1780678261000,-1024.91188285,0.00033826,2]
[424236161,1780678261000,-1024.91188285,0.00033879,2]
[424236163,1780678261000,-9329.48,0.00033891,7]
[424236164,1780678261000,-1024.91188285,0.00033896,2]
[424236162,1780678261000,-6337.6,0.00033891,2]
[424236168,1780678261000,-223.36346006,0.000339,120]
[424236166,1780678261000,-1682.15388962,0.000339,120]
[424236167,1780678261000,-466.06143726,0.000339,120]
[424236153,1780678261000,-1024.91188285,0.00033809,2]
[424236139,1780678261000,-1024.91188285,0.00033662,2]
[424236155,1780678261000,-150.338274,0.00033827,2]
[424236137,1780678261000,-1024.91188285,0.00033625,2]
[424236136,1780678261000,-1024.91188285,0.00033606,2]
[424236105,1780678261000,-971.02,0.00033395,7]
[424236099,1780678261000,-1239.32730338,0.00033363,2]
[424236110,1780678261000,-154.39,0.00033408,7]
[424236112,1780678261000,-2358.0,0.00033408,30]
[424236120,1780678261000,-1324.0,0.00033462,30]
[424236119,1780678261000,-934.0,0.00033462,30]
[424236114,1780678261000,-1024.91188285,0.00033428,2]
[424236113,1780678261000,-570.0,0.00033408,30]
[424236117,1780678261000,-630.0,0.00033457,30]
[424236111,1780678261000,-1116.0,0.00033408,30]
[424236115,1780678261000,-1024.91188285,0.00033448,2]
[424236121,1780678261000,-680.0,0.00033462,30]
[424236116,1780678261000,-1045.0,0.00033457,30]
[424236101,1780678261000,-1115.24093145,0.00033374,2]
[424236123,1780678261000,-3253.0,0.00033462,30]
[424236130,1780678261000,-1024.91188285,0.00033528,2]
[424236118,1780678261000,-4124.0,0.00033457,30]
[424236127,1780678261000,-200.0,0.00033498,10]
[424236128,1780678261000,-1235.04492495,0.000335,2]
[424236134,1780678261000,-1024.91188285,0.00033586,2]
[424236126,1780678261000,-179.97120458,0.0003349,2]
[424236135,1780678261000,-76696.01955962,0.000336,2]
[424236124,1780678261000,-1024.91188285,0.00033468,2]
[424236129,1780678261000,-1024.91188285,0.00033508,2]
[424236122,1780678261000,-3251.0,0.00033462,30]
[424236133,1780678261000,-154.84,0.00033573,7]
[424236132,1780678261000,-1024.91188285,0.00033567,2]
[424236131,1780678261000,-1024.91188285,0.00033548,2]
[424236125,1780678261000,-1024.91188285,0.00033488,2]
[424236188,1780678262000,-704.16,0.000339,14]
[424236200,1780678262000,-753.588151,0.00034,120]
[424236190,1780678262000,-167.08,0.00033904,7]
[424236195,1780678262000,-1024.91188285,0.00033965,2]
[424236198,1780678262000,-750.0,0.00034,2]
[424236197,1780678262000,-1024.91188285,0.00033999,2]
[424236196,1780678262000,-1024.91188285,0.00033982,2]
[424236199,1780678262000,-1092.43914338,0.00034,2]
[424236201,1780678262000,-2000.0,0.00034,7]
[424236211,1780678262000,-1163.78,0.0003415,120]
[424236203,1780678262000,-34958.81657301,0.0003401,2]
[424236209,1780678262000,-200.0,0.00034112,2]
[424236215,1780678262000,-800.0,0.00034174,12]
[424236208,1780678262000,-200.0,0.00034112,2]
[424236192,1780678262000,-1024.91188285,0.00033931,2]
[424236205,1780678262000,-183.60827665,0.00034059,13]
[424236204,1780678262000,-197942.96267842,0.0003402,2]
[424236210,1780678262000,-939.227582,0.00034114,11]
[424236212,1780678262000,-350.0,0.00034165,34]
[424236202,1780678262000,-212.64799,0.00034,9]
[424236193,1780678262000,-623.0,0.00033939,15]
[424236176,1780678262000,-602.88147334,0.000339,120]
[424236194,1780678262000,-1024.91188285,0.00033948,2]
[424236214,1780678262000,-800.0,0.00034174,12]
[424236171,1780678262000,-317.1473066,0.000339,120]
[424236173,1780678262000,-565.72421072,0.000339,120]
[424236172,1780678262000,-311.41773744,0.000339,120]
[424236169,1780678262000,-1457.05381825,0.000339,120]
[424236170,1780678262000,-517.41685059,0.000339,120]
[424236174,1780678262000,-1918.20776524,0.000339,120]
[424236186,1780678262000,-240.54220588,0.000339,120]
[424236178,1780678262000,-174.3460345,0.000339,120]
[424236183,1780678262000,-441.83431517,0.000339,120]
[424236175,1780678262000,-306.50544473,0.000339,120]
[424236185,1780678262000,-323.74083089,0.000339,120]
[424236182,1780678262000,-859.49474078,0.000339,120]
[424236184,1780678262000,-1939.11156993,0.000339,120]
[424236179,1780678262000,-1411.14452718,0.000339,120]
[424236177,1780678262000,-890.90734959,0.000339,120]
[424236181,1780678262000,-1910.38886028,0.000339,120]
[424236187,1780678262000,-278.51312383,0.000339,120]
[424236191,1780678262000,-1024.91188285,0.00033914,2]
[424236189,1780678262000,-356.36293984,0.000339,120]
[424236180,1780678262000,-433.47194799,0.000339,120]
[424236206,1780678262000,-200.0,0.00034109,2]
[424236207,1780678262000,-200.0,0.0003411,2]
[424236239,1780678262000,-200.0,0.00034355,2]
[424236247,1780678262000,-2321.0,0.00034445,11]
[424236240,1780678262000,-4854.23,0.00034371,7]
[424236242,1780678262000,-741.0,0.00034408,30]
[424236248,1780678262000,-421.92629531,0.00034453,2]
[424236241,1780678262000,-1073.94,0.00034384,30]
[424236243,1780678262000,-3960.0,0.00034408,30]
[424236245,1780678262000,-2358.0,0.00034408,30]
[424236251,1780678262000,-503.48646499,0.00034453,2]
[424236249,1780678262000,-500.0,0.00034453,2]
[424236246,1780678262000,-570.0,0.00034408,30]
[424236244,1780678262000,-1116.0,0.00034408,30]
[424236253,1780678262000,-400.0,0.00034453,2]
[424236252,1780678262000,-400.0,0.00034453,2]
[424236254,1780678262000,-406.08085529,0.00034453,2]
[424236255,1780678262000,-1045.0,0.00034457,30]
[424236257,1780678262000,-4124.0,0.00034457,30]
[424236256,1780678262000,-630.0,0.00034457,30]
[424236213,1780678262000,-800.0,0.00034174,12]
[424236238,1780678262000,-530.12183621,0.00034247,30]
[424236235,1780678262000,-520.06,0.00034247,7]
[424236250,1780678262000,-500.0,0.00034453,2]
[424236236,1780678262000,-1000.0,0.00034247,120]
[424236224,1780678262000,-800.0,0.00034174,12]
[424236237,1780678262000,-1000.0,0.00034247,120]
[424236221,1780678262000,-800.0,0.00034174,12]
[424236223,1780678262000,-800.0,0.00034174,12]
[424236218,1780678262000,-800.0,0.00034174,12]
[424236216,1780678262000,-800.0,0.00034174,12]
[424236225,1780678262000,-800.0,0.00034174,12]
[424236227,1780678262000,-800.0,0.00034174,12]
[424236217,1780678262000,-800.0,0.00034174,12]
[424236219,1780678262000,-800.0,0.00034174,12]
[424236220,1780678262000,-800.0,0.00034174,12]
[424236222,1780678262000,-800.0,0.00034174,12]
[424236229,1780678262000,-4510.5,0.00034182,7]
[424236228,1780678262000,-800.0,0.00034174,12]
[424236231,1780678262000,-186.18115721,0.00034188,2]
[424236230,1780678262000,-179.97120457,0.00034186,2]
[424236232,1780678262000,-150.52082757,0.00034188,2]
[424236234,1780678262000,-200.0,0.00034205,2]
[424236226,1780678262000,-800.0,0.00034174,12]
[424236233,1780678262000,-200.0,0.00034202,2]
[424236301,1780678263000,-318.383922,0.00034493,7]
[424236290,1780678263000,-314.504776,0.00034493,7]
[424236298,1780678263000,-657.431215,0.00034493,7]
[424236294,1780678263000,-360.414396,0.00034493,7]
[424236295,1780678263000,-657.431215,0.00034493,7]
[424236293,1780678263000,-360.414396,0.00034493,7]
[424236292,1780678263000,-360.414396,0.00034493,7]
[424236289,1780678263000,-151.0,0.00034493,7]
[424236296,1780678263000,-360.414396,0.00034493,7]
[424236300,1780678263000,-281.550892,0.00034493,7]
[424236291,1780678263000,-314.504776,0.00034493,7]
[424236299,1780678263000,-657.431215,0.00034493,7]
[424236303,1780678263000,-318.383922,0.00034493,7]
[424236307,1780678263000,-151.0,0.00034493,7]
[424236311,1780678263000,-5206.773793,0.00034493,7]
[424236302,1780678263000,-318.383922,0.00034493,7]
[424236312,1780678263000,-1024.56049,0.00034493,7]
[424236308,1780678263000,-151.0,0.00034493,7]
[424236306,1780678263000,-151.0,0.00034493,7]
[424236309,1780678263000,-151.0,0.00034493,7]
[424236305,1780678263000,-151.0,0.00034493,7]
[424236304,1780678263000,-318.383922,0.00034493,7]
[424236315,1780678263000,-5206.773793,0.00034493,7]
[424236314,1780678263000,-1024.56049,0.00034493,7]
[424236313,1780678263000,-5206.773793,0.00034493,7]
[424236316,1780678263000,-1024.56049,0.00034493,7]
[424236297,1780678263000,-657.431215,0.00034493,7]
[424236310,1780678263000,-151.0,0.00034493,7]
[424236288,1780678263000,-314.504776,0.00034493,7]
[424236268,1780678263000,-151.0,0.00034493,7]
[424236280,1780678263000,-211.073153,0.00034493,7]
[424236258,1780678263000,-934.0,0.00034462,30]
[424236259,1780678263000,-1324.0,0.00034462,30]
[424236261,1780678263000,-3251.0,0.00034462,30]
[424236263,1780678263000,-181.79,0.00034479,30]
[424236260,1780678263000,-680.0,0.00034462,30]
[424236262,1780678263000,-3253.0,0.00034462,30]
[424236266,1780678263000,-151.0,0.00034493,7]
[424236264,1780678263000,-1507.7369212,0.00034491,2]
[424236269,1780678263000,-151.0,0.00034493,7]
[424236275,1780678263000,-185.576005,0.00034493,7]
[424236265,1780678263000,-151.0,0.00034493,7]
[424236267,1780678263000,-193.069062,0.00034493,7]
[424236273,1780678263000,-151.0,0.00034493,7]
[424236284,1780678263000,-3001.961721,0.00034493,7]
[424236274,1780678263000,-185.576005,0.00034493,7]
[424236272,1780678263000,-151.0,0.00034493,7]
[424236270,1780678263000,-181.269916,0.00034493,7]
[424236317,1780678263000,-5206.773793,0.00034493,7]
[424236276,1780678263000,-185.576005,0.00034493,7]
[424236286,1780678263000,-314.504776,0.00034493,7]
[424236285,1780678263000,-3001.961721,0.00034493,7]
[424236287,1780678263000,-151.0,0.00034493,7]
[424236278,1780678263000,-211.073153,0.00034493,7]
[424236277,1780678263000,-185.576005,0.00034493,7]
[424236279,1780678263000,-211.073153,0.00034493,7]
[424236281,1780678263000,-211.073153,0.00034493,7]
[424236283,1780678263000,-3001.961721,0.00034493,7]
[424236282,1780678263000,-3001.961721,0.00034493,7]
[424236271,1780678263000,-151.0,0.00034493,7]
[424236319,1780678263000,-151.0,0.00034493,7]
[424236352,1780678263000,-500.0,0.00034619,2]
[424236322,1780678263000,-151.0,0.00034493,7]
[424236358,1780678263000,-525.35557267,0.0003483,2]
[424236360,1780678263000,-199837.49858974,0.000349,3]
[424236355,1780678263000,-151.0,0.00034711,2]
[424236356,1780678263000,-265.51807353,0.00034739,4]
[424236350,1780678263000,-500.0,0.00034619,2]
[424236351,1780678263000,-853.02,0.00034619,2]
[424236354,1780678263000,-894.14,0.00034619,2]
[424236357,1780678263000,-1500.0,0.00034795,2]
[424236353,1780678263000,-841.21,0.00034619,2]
[424236363,1780678263000,-1500.0,0.000349,7]
[424236366,1780678263000,-250.0,0.0003495,7]
[424236364,1780678263000,-199.0,0.00034901,120]
[424236370,1780678263000,-668.65185756,0.00034994,2]
[424236365,1780678263000,-7166.5335,0.00034908,2]
[424236371,1780678263000,-833.92535152,0.00034994,2]
[424236367,1780678263000,-150.0,0.00034967,2]
[424236372,1780678263000,-678.46889005,0.00034999,2]
[424236369,1780678263000,-372.58578916,0.00034984,5]
[424236375,1780678263000,-466.06143726,0.00035,120]
[424236374,1780678263000,-1682.15388962,0.00035,120]
[424236368,1780678263000,-1346.417306,0.00034971,13]
[424236373,1780678263000,-753.93753881,0.00035,120]
[424236376,1780678263000,-223.36346006,0.00035,120]
[424236378,1780678263000,-517.41685059,0.00035,120]
[424236377,1780678263000,-1457.05381825,0.00035,120]
[424236379,1780678263000,-317.1473066,0.00035,120]
[424236380,1780678263000,-311.41773744,0.00035,120]
[424236359,1780678263000,-150.0,0.00034887,2]
[424236362,1780678263000,-151.0,0.000349,7]
[424236320,1780678263000,-151.0,0.00034493,7]
[424236347,1780678263000,-500.0,0.00034619,2]
[424236361,1780678263000,-151.0,0.000349,7]
[424236323,1780678263000,-151.0,0.00034493,7]
[424236318,1780678263000,-1024.56049,0.00034493,7]
[424236321,1780678263000,-157.975636,0.00034493,7]
[424236324,1780678263000,-6564.4964163,0.00034493,2]
[424236334,1780678263000,-897.541149,0.00034576,7]
[424236336,1780678263000,-897.541149,0.00034576,7]
[424236335,1780678263000,-897.541149,0.00034576,7]
[424236325,1780678263000,-229320.4667903,0.00034493,2]
[424236327,1780678263000,-151.93571019,0.000345,120]
[424236326,1780678263000,-20136.72656788,0.000345,30]
[424236330,1780678263000,-9329.5,0.00034576,7]
[424236328,1780678263000,-623.0,0.00034545,16]
[424236329,1780678263000,-6337.62,0.00034576,2]
[424236333,1780678263000,-151.0,0.00034576,7]
[424236332,1780678263000,-151.0,0.00034576,7]
[424236331,1780678263000,-151.0,0.00034576,7]
[424236349,1780678263000,-500.0,0.00034619,2]
[424236345,1780678263000,-1445.79743,0.00034576,7]
[424236343,1780678263000,-1445.79743,0.00034576,7]
[424236348,1780678263000,-500.0,0.00034619,2]
[424236341,1780678263000,-991.41694,0.00034576,7]
[424236342,1780678263000,-1445.79743,0.00034576,7]
[424236344,1780678263000,-1445.79743,0.00034576,7]
[424236337,1780678263000,-897.541149,0.00034576,7]
[424236338,1780678263000,-991.41694,0.00034576,7]
[424236340,1780678263000,-991.41694,0.00034576,7]
[424236339,1780678263000,-991.41694,0.00034576,7]
[424236346,1780678263000,-500.0,0.00034619,2]
[424236418,1780678264000,-208.84,0.0003503,30]
[424236423,1780678264000,-606.01943079,0.00035045,2]
[424236424,1780678264000,-300.0,0.00035045,2]
[424236427,1780678264000,-1069.74260505,0.00035045,2]